Cogmind - Beta 9.6 @@@ ROGUE MODE // 2020.09.07 @ 11:12:17 Player: Vectis Result: Destroyed by G-34 Mercenary with Small Laser Performance ------------- Evolutions (0) 0 Regions Visited (4) 800 Robots Destroyed (22) 110 Value Destroyed (394) 394 Prototype IDs (22) 440 Alien Tech Used (0) 0 Bonus (291) 291 TOTAL SCORE: 2035 Bonus ------- Aligned with FarCom 300 Friendly Fire -9 Cogmind --------- Core Integrity 0/250 Matter 272/300 Energy 76/250 System Corruption 4% Temperature Cool (76) Movement Walking (210) Ox3 Location -9/Mines Parts ------- > --- POWER (1) -------- Ion Engine > --- PROPULSION (2) --- Aluminum Leg Aluminum Leg > --- UTILITY (2) ------ High-capacity Storage Unit High-capacity Storage Unit > --- WEAPON (2) ------- AWS/Thermal > --- INVENTORY (20) --- Ion Engine Ion Engine Light Treads Light Treads Light Treads Light Treads Light Treads Aluminum Leg Improved Heat Sink Large Storage Unit Large Storage Unit Superbattery (2000) High-capacity Matter Pod (200) Light Armor Plating Hacking Suite Light Assault Rifle Light Assault Rifle Light Assault Rifle Peak State ------------ > --- POWER ------------ Ion Engine > --- PROPULSION ------- Aluminum Leg Aluminum Leg > --- UTILITY ---------- High-capacity Storage Unit High-capacity Storage Unit > --- WEAPON ----------- Particle Gun Light Assault Rifle > --- INVENTORY -------- Ion Engine Ion Engine Ion Engine Light Treads Light Treads Light Treads Light Treads Light Treads Aluminum Leg Improved Heat Sink Large Storage Unit Large Storage Unit Superbattery High-capacity Matter Pod Light Armor Plating Hacking Suite EM Pulse Gun EM Pulse Gun AWS/Thermal [Rating: 12] Favorites ----------- Power Ion Engine Engine Ion Engine Propulsion Aluminum Leg Leg Aluminum Leg Utility High-capacity Storage Unit Storage High-capacity Storage Unit Weapon Light Assault Rifle Energy Gun EM Pulse Gun Ballistic Gun Light Assault Rifle Build | -11 -10 -10 -10 -9 ------- Run | Scr Mat Min Exi Min Slots Evolved . | . . . . . Power . | . . . . . Propulsion . | . . . . . Utility . | . . . . . Weapon . | . . . . . Parts Attached 21 | . 11 3 3 4 Power 3 | . 2 . . 1 Engine 3 | . 2 . . 1 Core . | . . . . . Reactor . | . . . . . Propulsion 8 | . 5 2 1 . Treads . | . . . . . Leg 8 | . 5 2 1 . Wheel . | . . . . . Hover . | . . . . . Flight . | . . . . . Utility 5 | . 3 . 2 . Device . | . . . . . Storage 5 | . 3 . 2 . Processor . | . . . . . Hackware . | . . . . . Protection . | . . . . . Artifact . | . . . . . Weapon 5 | . 1 1 . 3 Energy Gun 4 | . . 1 . 3 Energy Cannon . | . . . . . Ballistic Gun 1 | . 1 . . . Ballistic Cannon . | . . . . . Launcher . | . . . . . Special Weapon . | . . . . . Impact Weapon . | . . . . . Slashing Weapon . | . . . . . Piercing Weapon . | . . . . . Special Melee Weapon . | . . . . . Unidentified Prototypes . | . . . . . Parts Lost 4 | . 1 1 . 2 Power . | . . . . . Propulsion . | . . . . . Utility . | . . . . . Weapon 4 | . 1 1 . 2 Highest Loss Streak 1 | . 1 1 . 1 Average Slot Usage (%) 99 | . 98 97 100 99 Engine 14 | . 14 14 14 14 Leg 28 | . 28 28 28 28 Storage 27 | . 26 28 28 28 Energy Gun 13 | . . 10 14 26 Ballistic Gun 14 | . 28 16 14 . Naked Turns . | . . . . . Heaviest Build 73 | 12 56 57 73 73 Greatest Support 20 | 20 20 20 20 20 Greatest Overweight (x) 3 | . 2 2 3 3 Average Overweight (x) 2 | . 1 2 2 3 Largest Inventory Capacity 20 | 6 18 18 20 20 Average Capacity 17 | 6 15 18 19 20 Most Carried 20 | 6 18 18 20 20 Average Carried 16 | 5 12 17 18 19 Final Capacity 20 | 6 18 18 20 20 Final Carried 20 | 4 18 18 20 18 Class Distribution -------------------- 39% | Scavenger-Mutant 30% | Hauler-Mutant 29% | Mutant Dominant Class ---------------- Mutant | -10/Materials Scavenger-Mutant | -10/Mines Scavenger-Mutant | -10/Exiles Hauler-Mutant | -9/Mines Resources | -11 -10 -10 -10 -9 ----------- Run | Scr Mat Min Exi Min Matter Collected 991 | 220 609 38 91 33 Remotely . | . . . . . Salvage Created 706 | 84 490 38 . 94 Parts 39 | . 32 3 . 4 Haulers Intercepted 2 | . 2 . . . Recyclers Shooed 2 | . 2 . . . Parts Field Recycled . | . . . . . Retrieved Matter . | . . . . . Parts Self-Destructed . | . . . . . Prevented . | . . . . . Kills | -11 -10 -10 -10 -9 ------- Run | Scr Mat Min Exi Min Combat Hostiles Destroyed 14 | . 10 1 . 3 Guns 14 | . 10 1 . 3 Classes Destroyed 7 | 1 5 . . 1 Worker 3 | . 2 . . 1 Tunneler 1 | . . . . 1 Hauler 2 | . 2 . . . Recycler 1 | 1 . . . . Operator 1 | . 1 . . . Swarmer 6 | . 3 . . 3 Grunt 8 | . 7 1 . . Best Kill Streak 3 | 1 3 1 . 2 Combat Bots Only 3 | . 3 1 . 2 Max Kills in Single Turn 1 | 1 1 1 . 1 Gunslinging . | . . . . . Exploded . | . . . . . Melee . | . . . . . Uniques/NPCs Destroyed . | . . . . . Combat | -11 -10 -10 -10 -9 -------- Run | Scr Mat Min Exi Min Damage Taken 1031 | . 514 170 . 347 Core 250 | . 107 38 . 105 Absorbed by Shields . | . . . . . Core Remaining (%) 100 | 100 . . . . Volleys Fired 108 | 5 75 7 . 21 Largest 2 | 2 2 2 . 2 Hottest 85 | 40 40 85 . 85 Shots Fired 212 | 10 149 14 . 39 Gun 212 | 10 149 14 . 39 Cannon . | . . . . . Launcher . | . . . . . Special . | . . . . . Kinetic 180 | 10 149 8 . 13 Thermal 14 | . . 6 . 8 Explosive . | . . . . . Electromagnetic 18 | . . . . 18 Robot Hit Streak 14 | 3 14 6 . 7 Robot Miss Streak 7 | 2 7 2 . 3 Penetration Max . | . . . . . Secondary Targets . | . . . . . Shots Hit Robots 141 | 6 102 10 . 23 Core Hits 41 | 2 27 3 . 9 Critical Hits 2 | . 2 . . . Critical Kills 2 | . 2 . . . Critical Parts Destroyed . | . . . . . Melee Attacks . | . . . . . Impact . | . . . . . Slashing . | . . . . . Piercing . | . . . . . Sneak Attacks . | . . . . . Combat Hostiles . | . . . . . Follow-up Attacks . | . . . . . Damage Inflicted 1452 | 49 977 97 . 329 Guns 1398 | 49 977 97 . 275 Cannons . | . . . . . Explosions 54 | . . . . 54 Melee . | . . . . . Ramming . | . . . . . Kinetic 1111 | 49 977 35 . 50 Thermal 179 | . . 62 . 117 Explosive . | . . . . . Electromagnetic 162 | . . . . 162 Impact . | . . . . . Slashing . | . . . . . Piercing . | . . . . . Highest Corruption 4 | . 4 4 4 4 Average Corruption 3 | . 3 4 4 4 Corruption Purged . | . . . . . Effects 47 | . 11 2 16 18 Message Errors 10 | . 3 . 4 3 Matter Fused 9 | . 2 . 5 2 Heat Flow Errors 8 | . 3 1 2 2 Energy Discharges 6 | . 1 . 2 3 Parts Rejected 2 | . . . . 2 Data Loss (minor) 6 | . . . 3 3 Targeting Errors 5 | . 1 1 . 3 Weapon Failures 1 | . 1 . . . Overload Shots . | . . . . . Overflow Damage . | . . . . . Projectiles . | . . . . . Explosions . | . . . . . Melee . | . . . . . Knockbacks . | . . . . . Impact . | . . . . . Kinetic . | . . . . . Secondary . | . . . . . Self-Inflicted Damage 17 | . . . . 17 Shots 1 | . . . . 1 Rammed . | . . . . . Targets Rammed . | . . . . . Kicked . | . . . . . Crushed . | . . . . . Highest Temperature 290 | . 148 290 141 259 Average Temperature 98 | . 24 134 67 129 Received Heat Transfer 390 | . 225 105 . 60 Siege Activations . | . . . . . Robots Corrupted . | . . . . . Combat Hostiles . | . . . . . Parts Fried . | . . . . . Impact Corruptions . | . . . . . Robots Melted . | . . . . . Combat Hostiles . | . . . . . Parts Melted 1 | . . 1 . . Heat Transferred 396 | . . 148 . 248 Parts Sabotaged . | . . . . . Parts Stolen . | . . . . . Parts Stripped . | . . . . . Power Chain Reactions 1 | . . . . 1 Missiles Intercepted . | . . . . . Alert | -11 -10 -10 -10 -9 ------- Run | Scr Mat Min Exi Min Peak Influence 245 | 5 245 62 . 85 Average Influence 60 | 2 86 48 . 36 Maximum Alert Level 1 | . 1 . . . Low Security (%) 96 | 100 93 100 . 100 Level 1 3 | . 6 . . . Level 2 . | . . . . . Level 3 . | . . . . . Level 4 . | . . . . . Level 5 . | . . . . . High Security . | . . . . . Max Security . | . . . . . Squads Dispatched 2 | . 2 . . . Investigation 1 | . 1 . . . Extermination . | . . . . . Reinforcement 1 | . 1 . . . Assault . | . . . . . Garrison . | . . . . . Intercept . | . . . . . Construction Impeded . | . . . . . Haulers Reinforced . | . . . . . Stealth | -11 -10 -10 -10 -9 --------- Run | Scr Mat Min Exi Min Distress Signals 4 | . 4 . . . Communications Jammed . | . . . . . Distress Signals . | . . . . . Times Spotted 33 | . 23 2 . 8 Peak Tracking Total 4 | . 3 2 . 4 Tactical Retreats 3 | . 2 1 . . Traps | -11 -10 -10 -10 -9 ------- Run | Scr Mat Min Exi Min Traps Triggered 2 | . 2 . . . Indirectly . | . . . . . Trap Hack Attempts . | . . . . . Triggered . | . . . . . Disarmed . | . . . . . Reprogrammed . | . . . . . Reused . | . . . . . Traps Extracted . | . . . . . Installed . | . . . . . Triggered . | . . . . . Machines | -11 -10 -10 -10 -9 ---------- Run | Scr Mat Min Exi Min Machines Disabled . | . . . . . Max in Single Turn . | . . . . . Machines Sabotaged . | . . . . . Garrisons Compromised . | . . . . . Overloaded Fab Kills . | . . . . . Fab Network Shutdowns . | . . . . . Hacking | -11 -10 -10 -10 -9 --------- Run | Scr Mat Min Exi Min Machines Accessed 6 | . 3 . 2 1 Terminals 3 | . 2 . . 1 Fabricators . | . . . . . Repair Stations . | . . . . . Recycling Units 1 | . 1 . . . Scanalyzers . | . . . . . Garrison Access . | . . . . . Total Hacks 12 | . 6 . 2 4 Successful 4 | . 2 . 2 . Failed 8 | . 4 . . 4 Catastrophic 3 | . 2 . . 1 Database Lockouts . | . . . . . Manual 9 | . 4 . 1 4 Terminals 7 | . 3 . . 4 Fabricators . | . . . . . Repair Stations . | . . . . . Recycling Units 3 | . 3 . . . Scanalyzers . | . . . . . Garrison Access . | . . . . . Terminal Hacks 3 | . 1 . 2 . Record 1 | . . . 1 . Zone Layout 1 | . 1 . . . EX-Prototype ID Bank 1 | . . . 1 . Fabricator Hacks . | . . . . . Repair Station Hacks . | . . . . . Recycling Unit Hacks . | . . . . . Scanalyzer . | . . . . . Garrison Access Hacks . | . . . . . Unauthorized Hacks 1 | . 1 . . . Terminals . | . . . . . Fabricators . | . . . . . Repair Stations . | . . . . . Recycling Units 1 | . 1 . . . Tunnel 1 | . 1 . . . Scanalyzers . | . . . . . Garrison Access . | . . . . . Data Cores Recovered . | . . . . . Used . | . . . . . Hacking Detections 3 | . 2 . . 1 Full Trace Events . | . . . . . Feedback Events . | . . . . . Feedback Blocked . | . . . . . Robot Schematics Acquired . | . . . . . Robots Built . | . . . . . Matter . | . . . . . Time . | . . . . . Total Robot Build Rating . | . . . . . Part Schematics Acquired . | . . . . . Parts Built . | . . . . . Matter . | . . . . . Time . | . . . . . Total Part Build Rating . | . . . . . Parts Repaired . | . . . . . Time . | . . . . . Parts Recycled . | . . . . . Recycled Matter . | . . . . . Retrieved Matter . | . . . . . Retrieved Components . | . . . . . Parts Scanalyzed . | . . . . . Part Schematics Acquired . | . . . . . Parts Damaged . | . . . . . Bothacking | -11 -10 -10 -10 -9 ------------ Run | Scr Mat Min Exi Min Used RIF Installer . | . . . . . Robots Hacked . | . . . . . Non-combat . | . . . . . Combat . | . . . . . Robot Hacks Applied . | . . . . . Relay Couplers Released . | . . . . . Robots Rewired . | . . . . . Allies Hacked . | . . . . . Hacks Repelled . | . . . . . Allies | -11 -10 -10 -10 -9 -------- Run | Scr Mat Min Exi Min Total Allies 2 | . . . . 2 Largest Group 2 | . . . . 2 Highest-Rated Group 45 | . . . . 45 Highest-Rated Ally 31 | . . . . 31 Total Orders . | . . . . . Ally Attacks 1 | . . . . 1 Total Damage . | . . . . . Kills . | . . . . . Allies Corrupted . | . . . . . Allies Melted . | . . . . . Intel | -11 -10 -10 -10 -9 ------- Run | Scr Mat Min Exi Min Robot Analysis Total . | . . . . . Derelict Logs Recovered . | . . . . . Drone Launches . | . . . . . Drone Recoveries . | . . . . . Exploration | -11 -10 -10 -10 -9 ------------- Run | Scr Mat Min Exi Min Turns Passed 2629 | 31 876 63 825 834 Spaces Moved 991 | 14 361 21 413 182 Core . | . . . . . Treads . | . . . . . Legs 991 | 14 361 21 413 182 Wheels . | . . . . . Hover . | . . . . . Flight . | . . . . . Fastest Speed 120 | 120 120 180 180 210 Average Speed 181 | 120 151 180 196 210 Slowest Speed 210 | 120 180 180 210 210 Overloaded Moves . | . . . . . Propulsion Burnouts . | . . . . . Robots Hopped . | . . . . . Cave-ins Triggered . | . . . . . Exploration Rate (%) 36 | 3 54 9 70 47 Regions Visited 4 Branch Regions 3 Pre-discovered Areas 2 | . 1 . 1 . Known Exits Taken . | . . . . . Unknown Exits Taken 4 | 1 1 1 1 . Scrap Searched 1 | . . . . 1 Spaces Dug . | . . . . . Terrain Destroyed 6 | . . . . 6 Melee . | . . . . . Projectile . | . . . . . AOE 6 | . . . . 6 Actions | -11 -10 -10 -10 -9 --------- Run | Scr Mat Min Exi Min Total 1638 | 20 557 34 429 598 Wait 480 | . 93 1 . 386 Move 987 | 13 360 20 412 182 Hop . | . . . . . Pick Up 25 | . 12 1 9 3 Fast Attach 3 | . 1 . 1 1 Attach 5 | . 1 1 . 3 Detach . | . . . . . Swap 13 | . 9 2 2 . Drop 17 | 2 6 2 5 2 Fire 108 | 5 75 7 . 21 Melee . | . . . . . Ram . | . . . . . Kick . | . . . . . Crush . | . . . . . Escape Stasis . | . . . . . Rewire . | . . . . . Trap . | . . . . . Miscellaneous . | . . . . . Route ------- -11/Scrapyard -10/Materials (discovered 3 exits: [*Mat x2] / [*Min]) -10/Mines -10/Exiles -9/Mines History --------- Turn | Location | Event 1 | -11/Scrapyard | Discovered new exit (range 3) 32 | -11/Scrapyard | Entered Materials 314 | -10/Materials | Build established: Mutant 523 | -10/Materials | Discovered new exit (range 5) 838 | -10/Materials | Discovered new exit (range 16) 874 | -10/Materials | Discovered new exit (range 14) 908 | -10/Materials | Entered Mines 915 | -10/Mines | Core integrity fell below 50% 962 | -10/Mines | Deemed a non-threat by the Exiles lab entrance 963 | -10/Mines | Discovered new exit (range 5) 971 | -10/Mines | Entered Exiles 1016 | -10/Exiles | Met 8R-AWN 1045 | -10/Exiles | Met EX-HEX 1086 | -10/Exiles | Build established: Scavenger-Mutant 1141 | -10/Exiles | Met EX-DEC 1171 | -10/Exiles | Learned location of Zion (-6) 1392 | -10/Exiles | Met EX-BIN 1420 | -10/Exiles | Aligned with FarCom system 1422 | -10/Exiles | Given EX-Vault access code 1470 | -10/Exiles | Opened EX-Vault 1483 | -10/Exiles | Found Superbattery 1489 | -10/Exiles | Found AWS/Thermal 1540 | -10/Exiles | Warned to stay clear of 0b10 Research branches 1779 | -10/Exiles | Discovered new exit (range 10) 1796 | -10/Exiles | Stole two prototypes: Superbattery, AWS/Thermal 1796 | -10/Exiles | Entered Mines 2117 | -9/Mines | Core integrity fell below 20% 2126 | -9/Mines | Build established: Hauler-Mutant 2236 | -9/Mines | Excavation squad dispatched 2236 | -9/Mines | A large section of the Mines collapsed 2486 | -9/Mines | Excavation squad dispatched 2630 | -9/Mines | Destroyed by G-34 Mercenary with Small Laser Last Messages --------------- 02236_ 41 Matter crushed. 02236_ Wheel crushed. 02236_ 21 Matter crushed. 02236_ ALERT: Suspicious cave-in, suspected derelict activity in mines. Dispatching escorted excavation squad. 02244_ System corrupted: Matter fused (-6). 02263_ System corrupted: Heat flow error (+279). 02314_ System corrupted: Energy discharge (-75). 02447_ System corrupted: Component data lost. 02486_ ALERT: Derelict activity in mines confirmed. Dispatching additional escorted excavation squad. 02501_ P8HCV|MFFWR3 CE L/#NFWOBFWB NHALXVIZY 02622_ System corrupted: Ion Engine rejected. 02622_ Acquired Ion Engine. 02622_ T-07 Excavator is excavating. 02623_ System corrupted: EM Pulse Gun targeting data glitched. 02623_ T-07 Excavator is excavating. 02628_ EM Pulse Gun destroyed. 02628_ T-07 Excavator is excavating. 02629_ Dropped EM Pulse Gun. Map ----- +----------------------------------------------------+ | | | | | | | | | | | | | | | ???????????????????????????????????????????? | | ???????????????????????????????????????????? | | ???????????????????????????????????????????? | | ???????????????????????????????????????????? | | ???????????????????????????????????????????? | | ???????????????????????????????????????????? | | ???????????????????????????????????????????? | | ???????????????????????#####???????????????? | | ??????????????????????# ; ????????????????? | | ?????????????????????? ????????????????? | | ?????????????????????# ????????g????????? | | ??????????????????### ??????????????????? | | ?????????????????## ???????????????????? | | ?????????????????#*=g ???????????????????? | | ?????????????????%t% ??????????g?????????? | | ??????????????????= gt?????????????????????? | | ??????????????????ugg#?????????????????????? | | ??????????????????# #?????????????????????? | | ??????????????????#@t#?????????????????????? | | ??????????????????#g##?????????????????????? | | ??????????????????# ;#?????????????????????? | | ??????????????????#t #?????????????????????? | | ??????????????????# #?????????????????????? | | ??????????????????#; #?????????????????????? | | ??????????????##### #?????????????????????? | | ??????????????# !% #?????????????????????? | | ???###????????# ######?????????????????????? | | ??##T#######??# ########???????????????????? | | ??# #??# #???????????????????? | | ??# """#??# ###### #???????????????????? | | ??# """#??# #????# ####????????????????? | | ??# """#??# #????# ##########???????? | | ??# #### #????# % #???????? | | ??# #????## ### #### #???????? | | ??# ########???#####?# #????????????? | | ??##########??## ##????????# #????????????? | | ??????????????# ##???????# #????????????? | | ??????????????# ##??????# #????????????? | | ??????????????## ###????# #????????????? | | ???????????????# ##???# #????????????? | | ???????????????# #??## #????????????? | | ???????????????## #### ##???????????? | | ???????????????# ## #?????? ???? | +----------------------------------------------------+ Best States ------------- Heat Dissipation 25 Energy Generation 10 Energy Capacity 250 Matter Stores 300 Matter Capacity 300 Sight Range 16 Terrain Scan Density 10 Evasion (%) 40 Item Schematics ----------------- None Robot Schematics ------------------ None Fabricated ------------ Nothing Alien Tech Used ----------------- None Achievements -------------- None Challenges ------------ None Game ------ Seed SlugImprinterFalx Manual? 0 Play Time 00:12:19 Cumulative 217.1 hours Start 2020.09.07 @ 11:01:03 End 2020.09.07 @ 11:12:17 Sessions 1 Manual Loads 0 Difficulty Rogue Special Mode None Game No. 97 Rogue 97 Adventurer 0 Explorer 0 Win Type - Total 7 Types 6/0/0/1/0/0/0 Lore% 83 Gallery% 79 Achievement% 70 Wizard Run 0 Options --------- ASCII 1 Keyboard 0 Movement Numpad Keybinds 0 Fullscreen 1 Font 18/Cog Map View 76x50 Tactical HUD 1 Map Filters NONE Filters NONE Steam 1 RUN: e23a86c8-4cbe-4f22-ba39-d3415e354251